bitfinex/quotes_ETHUSD_20240721
["timestamp","ask_amount","ask_price","bid_price","bid_amount"]
[1721524759764,0.59445355,3519.0,3518.7,2.4656]
[1721524759963,0.59445355,3519.0,3518.7,5.30755]
[1721524762465,0.59445355,3518.9,3518.7,5.30755]
[1721524762660,0.59445355,3518.9,3518.7,2.4656]
[1721524762877,0.59445355,3518.9,3518.5,2.4656]
[1721524763077,0.59445355,3518.9,3518.5,4.1997952]
[1721524763572,0.59445355,3518.8,3518.5,4.1997952]
[1721524766320,0.59445355,3518.8,3518.5,1.7341952]
[1721524768205,0.59445355,3518.7,3518.5,1.7341952]
[1721524777728,0.59445355,3518.7,3518.3,2.3095]
[1721524777961,0.59445355,3518.4,3518.1,2.3095]
[1721524778130,0.59493562,3518.4,3517.9,9.7595]
[1721524778323,0.59493562,3518.3,3517.9,9.7595]
[1721524779622,0.59493562,3518.4,3517.9,10.6005]
[1721524779856,0.59493562,3518.4,3518.0,1.344318]
[1721524782665,0.59493562,3518.5,3518.0,1.344318]
[1721524782877,0.59493562,3518.5,3517.9,5.99308]
[1721524787264,0.59493562,3518.5,3518.0,2.84251]
[1721524788542,0.59493562,3518.6,3518.1,2.84242]
[1721524788742,0.59493562,3518.6,3518.2,2.84234]
[1721524791735,0.59493562,3518.5,3518.2,2.84234]
[1721524792073,0.59493562,3518.6,3518.3,2.4391]
[1721524796658,0.59493562,3518.5,3518.3,2.4391]
[1721524803870,0.59493562,3518.5,3518.3,6.093765]
[1721524804244,0.59493562,3518.6,3518.4,2.8422]
[1721524804676,0.59493562,3518.5,3518.2,2.84231]
[1721524805065,0.59493562,3518.4,3518.2,2.84231]
[1721524806806,0.59493562,3518.4,3518.1,2.84243]
[1721524807324,0.59493562,3518.3,3518.1,2.84243]
[1721524807470,0.59493562,3518.3,3518.0,2.84251]
[1721524807670,1.18640905,3518.6,3518.0,3.642344]
[1721524807671,0.59493562,3518.2,3518.0,3.642344]
[1721524808189,0.59493562,3518.3,3518.0,3.642344]
[1721524808916,0.59493562,3518.3,3518.1,2.84243]
[1721524809478,0.59493562,3518.4,3518.1,2.84243]
[1721524809887,0.59493562,3518.4,3518.2,2.84235]
[1721524810111,0.59493562,3518.4,3518.2,3.7221474]
[1721524815827,0.59493562,3518.4,3518.3,2.84228]
[1721524816016,0.59493562,3518.4,3518.3,5.12648]
[1721524816936,0.59493562,3518.4,3518.3,7.96876]
[1721524817086,0.59493562,3518.6,3518.4,2.2842]
[1721524817421,0.59493562,3518.9,3518.8,5.12607]
[1721524817621,0.59493562,3519.0,3518.9,2.84179]
[1721524817921,0.59493562,3519.1,3518.9,2.84179]
[1721524818123,0.59493562,3519.0,3518.9,2.84179]
[1721524818311,0.59493562,3519.1,3518.9,2.84179]
[1721524821323,0.59493562,3519.2,3518.9,3.67027431]
[1721524823225,0.59493562,3519.1,3518.9,3.67027431]
[1721524823385,0.59493562,3519.2,3518.9,2.84179]
[1721524824099,0.59493562,3519.2,3519.1,0.31690311]
[1721524824789,0.59493562,3519.3,3519.1,0.31690311]
[1721524825822,0.89091382,3519.4,3519.1,0.31690311]
[1721524825823,0.59493562,3519.2,3519.1,0.31690311]
[1721524826130,0.59493562,3519.2,3518.8,2.2842]
[1721524826131,0.59456686,3519.2,3518.8,5.12603]
[1721524826299,0.59456686,3519.2,3518.9,0.796798]
[1721524826834,0.89091382,3519.3,3518.9,0.796798]
[1721524826835,0.59456686,3519.1,3518.9,0.796798]
[1721524827130,0.59456686,3519.2,3518.9,0.796798]
[1721524827424,0.59456686,3519.2,3518.9,3.638578]
[1721524827637,0.59456686,3519.3,3518.9,3.638578]
[1721524829606,0.59456686,3519.2,3518.9,3.638578]
[1721524830195,0.59456686,3519.2,3519.0,0.8764728]
[1721524830714,0.59456686,3519.3,3519.0,0.8764728]
[1721524830920,0.59456686,3519.2,3519.0,0.8764728]
[1721524831227,0.59456686,3519.3,3519.0,0.8764728]
[1721524831990,0.59456686,3519.3,3519.1,0.05337857]
[1721524832606,0.59456686,3519.3,3518.9,2.84178]
[1721524832806,0.59456686,3519.2,3518.9,3.638573]
[1721524833025,0.59456686,3519.2,3519.0,0.05298933]
[1721524833398,0.59456686,3519.2,3519.1,0.05298682]
[1721524834235,0.59456686,3519.2,3518.9,3.638573]
[1721524834450,0.59456686,3519.2,3519.1,0.05298682]
[1721524834831,0.59456686,3519.3,3518.9,3.638573]
[1721524835220,0.59456686,3519.3,3519.0,0.05298933]
[1721524835436,0.59456686,3519.3,3519.0,2.84169]
[1721524835758,0.59456686,3519.3,3519.1,0.05298682]
[1721524835964,0.59456686,3519.4,3519.1,0.05298682]
[1721524837442,0.59456686,3519.5,3519.1,0.9347408]
[1721524837654,0.59456686,3519.6,3519.2,2.264]
[1721524837952,0.59456686,3519.5,3519.3,0.0529818]
[1721524838157,0.59456686,3519.6,3519.3,0.0529818]
[1721524849649,0.59456686,3519.7,3519.3,3.44197889]
[1721524849896,0.59456686,3519.8,3519.6,2.84122]
[1721524850033,0.59456686,3519.9,3519.6,2.84122]
[1721524850234,0.59456686,3519.9,3519.7,0.87458462]
[1721524851047,0.59456686,3520.0,3519.8,2.4811]
[1721524851248,0.59456686,3520.0,3519.9,0.05291669]
[1721524854481,0.89091382,3520.1,3519.9,0.05291669]
[1721524854848,0.89091382,3520.1,3519.9,0.59044036]
[1721524855073,0.59480649,3520.2,3519.9,0.90728944]
[1721524855572,0.59480649,3520.3,3519.9,0.90728944]
[1721524855948,0.59480649,3520.2,3520.0,0.31684908]
[1721524856153,0.59480649,3520.2,3520.0,0.3696085]
[1721524860308,0.59480649,3520.2,3520.0,1.27663672]
[1721524860627,0.89091382,3520.4,3520.1,2.4811]
[1721524860628,0.59480649,3520.3,3520.1,2.4811]
[1721524861107,0.59480649,3520.3,3520.2,0.05268505]
[1721524861412,0.89091382,3520.5,3520.2,0.05268505]
[1721524861413,0.59480649,3520.4,3520.2,0.05268505]
[1721524861593,0.59480649,3520.4,3520.3,0.65984824]
[1721524861991,0.59480649,3520.4,3520.3,0.71251258]
[1721524862205,0.89091382,3520.5,3520.3,0.71251258]
[1721524862408,0.89091382,3520.5,3520.3,0.05266434]
[1721524862719,0.59523709,3520.4,3520.1,2.4811]
[1721524862916,0.89091382,3520.5,3520.1,2.4811]
[1721524862917,0.59523709,3520.3,3520.1,2.4811]
[1721524863500,0.89091382,3520.5,3520.1,2.4811]
[1721524863501,0.59523709,3520.4,3520.1,2.4811]
[1721524873530,0.59523709,3520.6,3520.3,2.4903]
[1721524873738,0.59523709,3520.7,3520.4,0.53837101]
[1721524873968,0.59523709,3520.7,3520.4,0.5909631]
[1721524874639,0.59523709,3520.8,3520.5,2.4903]
[1721524874945,0.89091382,3520.9,3520.6,0.05258708]
[1721524874946,0.59523709,3520.7,3520.6,0.05258708]
[1721524875752,0.89091382,3520.8,3520.6,0.05258708]
[1721524876110,0.89091382,3520.7,3520.6,0.05258708]
[1721524876354,0.89091382,3520.7,3520.2,5.33104]
[1721524876660,0.59504146,3520.6,3520.2,5.33104]
[1721524877655,0.59504146,3520.5,3520.2,5.33104]
[1721524877841,0.59504146,3520.6,3520.2,5.33104]
[1721524878040,0.59504146,3520.6,3520.2,5.99647247]
[1721524879318,0.59504146,3520.5,3520.2,5.99647247]
[1721524880920,0.59504146,3520.6,3520.2,5.99647247]
[1721524881354,0.89091382,3520.7,3520.2,5.99647247]
[1721524881355,0.59504146,3520.5,3520.2,5.99647247]
[1721524881542,0.59504146,3520.5,3520.3,0.63133215]
[1721524882952,0.89091382,3520.7,3520.3,0.63133215]
[1721524882953,0.59504146,3520.6,3520.3,0.63133215]
[1721524883172,0.59504146,3520.5,3520.3,0.63133215]
[1721524884244,0.59504146,3520.5,3520.2,3.15573247]
[1721524885353,0.59504146,3520.5,3520.4,0.31684908]
[1721524887592,0.89091382,3520.7,3520.4,0.31684908]
[1721524887593,0.59504146,3520.6,3520.4,0.31684908]
[1721524887958,0.59504146,3520.6,3520.2,3.15573247]
[1721524888253,0.59504146,3520.5,3520.3,0.65216644]
[1721524890889,0.59504146,3520.5,3520.4,2.4782]
[1721524891070,0.59504146,3520.5,3520.4,2.53070868]
[1721524891473,0.59504146,3520.6,3520.4,2.53070868]
[1721524891662,0.59504146,3520.7,3520.4,2.53070868]
[1721524891993,0.59504146,3520.7,3520.4,3.27846032]
[1721524892194,0.59504146,3520.6,3520.4,3.27846032]
[1721524892583,0.59504146,3520.7,3520.4,3.27846032]
[1721524893207,0.89091382,3520.8,3520.5,2.4782]
[1721524893208,0.59504146,3520.8,3520.5,2.4782]
[1721524893392,0.59504146,3520.8,3520.6,0.47191156]
[1721524893561,0.59504146,3520.8,3520.6,0.52441523]
[1721524894000,0.59504146,3520.8,3520.7,2.4782]
[1721524894296,0.59504146,3520.8,3520.7,2.53070116]
[1721524896111,0.59504146,3520.9,3520.7,2.53070116]
[1721524896394,0.59504146,3520.8,3520.7,2.53070116]
[1721524896701,0.59504146,3520.9,3520.7,2.53070116]
[1721524897267,0.59504146,3520.9,3520.7,5.37103116]
[1721524897470,0.59504146,3521.0,3520.7,5.37103116]
[1721524897684,1.43604146,3521.0,3520.8,0.61596748]
[1721524897879,1.43604146,3521.0,3520.9,0.05242945]
[1721524898471,1.43667974,3521.0,3520.9,0.05242945]
[1721524898878,0.59567974,3521.0,3520.9,0.05242945]
[1721524899182,0.59567974,3521.4,3521.1,5.28232]
[1721524899416,0.59567974,3521.6,3521.4,2.83977]
[1721524899564,1.03520002,3521.8,3521.6,2.4423]
[1721524899565,0.73996594,3521.8,3521.6,2.4423]
[1721524899765,0.73996594,3521.8,3521.6,5.28191]
[1721524899766,0.1442862,3521.8,3521.6,5.28191]
[1721524899968,0.1442862,3521.8,3521.7,0.0522351]
[1721524900194,0.1442862,3521.8,3521.7,3.59108237]
[1721524900408,3.2777862,3521.8,3521.7,0.0522351]
[1721524900580,8.9566862,3521.8,3521.7,0.0522351]
[1721524900789,2.83967,3521.6,3520.7,2.84032]
[1721524901119,0.841,3520.9,3520.8,0.05220463]
[1721524901280,1.43642198,3520.9,3520.8,0.05220463]
[1721524901467,1.43642198,3520.9,3520.5,0.31673208]
[1721524901667,0.841,3520.6,3520.5,0.31673208]
[1721524903311,0.841,3520.6,3520.5,0.36713408]
[1721524904784,0.841,3520.8,3520.5,0.36713408]
[1721524904981,0.841,3520.8,3520.5,0.93213549]
[1721524907087,1.43642198,3520.8,3520.5,0.93213549]
[1721524907288,1.43642198,3520.8,3520.5,0.36713408]
[1721524909416,0.59542198,3520.7,3520.5,0.36713408]
[1721524909817,0.841,3520.6,3520.5,0.36713408]
[1721524910022,1.43642198,3520.6,3520.5,0.36713408]
[1721524910212,3.68142,3520.6,3520.5,0.36713408]
[1721524910414,5.67393168,3520.6,3520.5,0.36713408]
[1721524911232,4.7807987,3520.6,3520.5,0.36713408]
[1721524911453,5.67393168,3520.6,3520.5,0.36713408]
[1721524912125,4.57455298,3520.6,3520.5,0.36713408]
[1721524912325,0.841,3520.6,3520.5,0.36713408]
[1721524912511,1.43664083,3520.6,3520.5,0.36713408]
[1721524912972,0.841,3520.6,3520.5,0.36713408]
[1721524913830,0.59564083,3520.7,3520.5,2.68953408]
[1721524914032,0.59564083,3520.9,3520.6,2.3224]
[1721524914434,0.59564083,3521.0,3520.7,0.04899126]
[1721524914637,0.59564083,3521.0,3520.9,2.84018]
[1721524914832,0.59564083,3521.2,3520.9,3.43756438]
[1721524915068,1.43664083,3521.3,3520.9,3.48655063]
[1721524915480,0.841,3521.0,3520.9,3.48655063]
[1721524916050,0.59564083,3521.3,3520.9,3.48655063]
[1721524916275,0.59564083,3521.3,3521.0,2.3242]
[1721524916487,0.59564083,3521.6,3521.1,0.29705706]
[1721524916639,0.59564083,3521.6,3521.2,2.83994]
[1721524916975,0.59564083,3521.7,3521.3,0.04897622]
[1721524917141,0.59564083,3521.7,3521.2,2.83994]
[1721524917342,0.59564083,3521.7,3521.4,0.04897372]
[1721524917578,0.59564083,3521.7,3521.2,3.15667208]
[1721524917788,0.59564083,3521.7,3521.5,0.04897121]
[1721524917951,0.59564083,3521.7,3521.2,3.15667208]
[1721524918140,0.59564083,3521.7,3521.6,0.04896871]
[1721524918335,0.59564083,3521.7,3521.2,3.15667208]
[1721524918535,0.73992703,3521.8,3521.6,0.04896871]
[1721524918782,0.73992703,3521.8,3521.3,0.31673208]
[1721524918986,0.73992703,3521.8,3521.7,0.0489662]
[1721524919143,0.73992703,3521.8,3521.3,3.15658208]
[1721524919344,0.73992703,3521.8,3521.7,0.0489662]
[1721524919553,0.1442862,3521.8,3521.6,2.3242]
[1721524919879,0.7392961,3521.8,3521.6,2.3242]
[1721524920376,0.1442862,3521.8,3521.6,2.3242]
[1721524920740,0.1442862,3521.8,3521.6,5.1638]
[1721524921140,0.1442862,3521.8,3521.7,2.83953]
[1721524923084,0.1442862,3521.8,3521.6,3.15623821]
[1721524923406,0.1442862,3521.8,3521.6,2.3242]
[1721524923983,0.1442862,3521.8,3521.4,5.16392]
[1721524924552,0.1442862,3521.8,3521.4,2.3242]
[1721524926361,0.1442862,3521.8,3521.4,5.99603321]
[1721524926768,0.1442862,3521.8,3521.4,3.15627321]
[1721524926979,0.1442862,3521.8,3521.4,2.3242]
[1721524928451,0.1442862,3521.8,3521.3,0.31673208]
[1721524929300,2.01,3521.7,3521.3,0.31673208]
[1721524929610,0.5950099,3521.6,3521.3,0.31673208]
[1721524931293,3.4346499,3521.6,3521.3,0.31673208]
[1721524931669,0.5950099,3521.6,3521.3,0.31673208]
[1721524931865,2.6050099,3521.7,3521.3,0.31673208]
[1721524932070,5.4445599,3521.7,3521.3,0.31673208]
[1721524932293,5.4445599,3521.7,3521.3,2.56773208]
[1721524932294,2.6050099,3521.7,3521.3,2.56773208]
[1721524932458,2.01,3521.7,3521.3,2.56773208]
[1721524932791,0.7392961,3521.8,3521.3,2.56773208]
[1721524932991,0.1442862,3521.8,3521.3,2.56773208]
[1721524933199,0.1442862,3521.8,3521.5,2.83962]
[1721524933400,0.1442862,3521.8,3521.6,2.251]
[1721524933604,0.1442862,3521.8,3521.6,2.29799001]
[1721524937902,0.1442862,3521.8,3521.6,5.13760001]
[1721524938479,0.1442862,3521.8,3521.7,2.83953]
[1721524938677,0.1442862,3521.8,3521.7,3.637259]
[1721524938991,0.1442862,3521.8,3521.7,3.68426464]
[1721524939291,0.1442862,3521.8,3521.7,0.84473464]
[1721524939492,0.1442862,3521.8,3521.7,0.04700564]
[1721524946880,0.1442862,3521.8,3521.7,0.36373772]
[1721524947491,0.1442862,3521.8,3521.7,3.20326772]
[1721524947710,0.1442862,3521.8,3521.7,2.88653564]
[1721524950130,0.9812862,3521.8,3521.7,2.88653564]
[1721524950279,0.9812862,3521.8,3521.7,3.6842582]
[1721524950480,0.9812862,3521.8,3521.7,0.04700564]
[1721524958032,0.9812862,3521.8,3521.7,2.88653564]
[1721524960637,1.5762961,3521.8,3521.7,2.88653564]
[1721524960804,0.9812862,3521.8,3521.7,2.88653564]
[1721524961506,1.5762961,3521.8,3521.7,2.88653564]
[1721524961707,1.5762961,3521.8,3521.7,3.6842582]
[1721524962230,0.9812862,3521.8,3521.7,3.6842582]
[1721524962609,1.5762961,3521.8,3521.7,3.6842582]
[1721524963310,0.1442862,3521.8,3521.7,6.5237882]
[1721524963706,0.1442862,3521.8,3521.7,8.8964882]
[1721524964026,0.1442862,3521.8,3521.7,9.4464882]
[1721524964914,0.9812862,3521.8,3521.7,0.8447282]
[1721524965116,0.9812862,3521.8,3521.7,0.04700564]
[1721524965315,1.5762961,3521.8,3521.7,0.04700564]
[1721524965749,1.5762961,3521.8,3520.7,10.29031]
[1721524965750,2.83975,3521.5,3520.7,10.29031]
[1721524966001,0.59612758,3521.2,3521.1,2.84002]
[1721524966126,0.59612758,3521.4,3521.1,2.84002]
[1721524966467,1.43312758,3521.5,3521.4,2.83977]
[1721524966631,0.837,3521.5,3521.4,2.83977]
[1721524967376,0.59612758,3521.6,3521.4,2.83977]
[1721524967377,0.74041378,3521.8,3521.7,2.83953]
[1721524967542,0.1442862,3521.8,3521.7,6.22906]
[1721524970146,0.1442862,3521.8,3521.7,8.61376]
[1721524975079,0.1442862,3521.8,3521.7,5.77423]
[1721524976769,0.1442862,3521.8,3521.7,8.61376]
[1721524976977,0.1442862,3521.8,3521.7,9.5319322]
[1721524978073,0.9812862,3521.8,3521.7,4.3077022]
[1721524978378,0.9812862,3521.8,3521.7,3.43137985]
[1721524978741,0.9812862,3521.8,3521.7,0.59184985]
[1721524979477,0.9812862,3521.8,3521.7,3.43137985]
[1721524979641,0.9812862,3521.8,3521.7,0.59184985]
[1721524979841,0.9812862,3521.8,3521.7,0.99179204]
[1721524980049,0.9812862,3521.8,3521.7,0.44179204]
[1721524980438,0.9812862,3521.8,3521.7,0.04184985]
[1721524980637,0.9812862,3521.8,3521.5,0.55]
[1721524980840,0.837,3521.6,3521.3,3.38982]
[1721524981069,1.43292085,3521.6,3521.3,3.38982]
[1721524981953,1.43292085,3521.6,3521.3,0.55]
[1721524982143,0.837,3521.4,3521.1,2.3847]
[1721524982343,0.837,3521.4,3521.1,3.05527777]
[1721524982540,0.837,3521.4,3521.1,5.89523777]
[1721524983680,0.837,3521.4,3521.2,0.55]
[1721524984895,0.59592085,3521.6,3521.2,0.55]
[1721524984896,1.43292085,3521.6,3521.3,2.83986]
[1721524985037,0.837,3521.6,3521.3,3.76838278]
[1721524985758,0.59592085,3521.7,3521.3,0.92852278]
[1721524985955,0.74020705,3521.8,3521.6,2.83954]
[1721524986156,0.1442862,3521.8,3521.6,2.83954]
[1721524986603,0.74020705,3521.8,3521.6,2.83954]
[1721524987390,0.74020705,3521.8,3521.4,2.83976]
[1721524987391,1.43292085,3521.7,3521.4,2.83976]
[1721524987678,0.59592085,3521.6,3521.4,2.83976]
[1721524987881,0.59592085,3521.6,3521.4,3.701198]
[1721524990786,0.59592085,3521.7,3521.4,3.701198]
[1721524991784,1.03847758,3521.8,3521.6,2.83961]
[1721524991785,0.74020705,3521.8,3521.6,2.83961]
[1721524991939,0.1442862,3521.8,3521.7,2.83953]
[1721524992144,0.1442862,3521.8,3521.7,9.2288228]
[1721524993394,0.1442862,3521.8,3521.7,9.27072399]
[1721525009589,0.1442862,3521.8,3521.7,6.92502399]
[1721525010823,0.1442862,3521.8,3521.7,0.04190119]
[1721525011175,0.1442862,3521.8,3521.5,2.83968]
[1721525011376,0.1442862,3521.8,3521.7,0.04038603]
[1721525011588,0.1442862,3521.8,3521.6,2.87993853]
[1721525011816,0.1442862,3521.8,3521.7,0.04040414]
[1721525012515,0.1442862,3521.8,3521.7,2.87993414]
[1721525012674,0.1442862,3521.8,3521.7,3.45190355]
[1721525012882,0.1442862,3521.8,3521.7,6.45560355]
[1721525013923,0.1442862,3521.8,3521.7,9.29513355]
[1721525016718,0.1442862,3521.8,3521.7,16.12158186]
[1721525016918,0.1442862,3521.8,3521.7,17.60208085]
[1721525017143,0.1442862,3521.8,3521.7,18.19781354]
[1721525017358,3.65715517,3523.2,3522.8,2.83865]
[1721525017359,0.59592085,3522.9,3522.8,2.83865]
[1721525017660,0.89419138,3523.1,3523.0,2.83848]
[1721525017661,0.59592085,3523.1,3523.0,2.83848]
[1721525017821,0.59592085,3523.1,3523.0,3.38848]
[1721525018021,0.59592085,3523.1,3523.0,3.4288244]
[1721525019462,0.59592085,3523.3,3523.1,2.8384]
[1721525019667,1.43292085,3523.4,3523.1,2.8384]
[1721525019818,0.59592085,3523.4,3523.2,2.83832]
[1721525020021,0.59592085,3523.4,3523.3,0.04033689]
[1721525020222,1.43292085,3523.6,3523.3,2.83822]
[1721525020529,0.837,3523.6,3523.4,2.87836176]
[1721525021880,0.837,3523.6,3523.5,0.3169678]
[1721525022077,0.59592085,3523.7,3523.5,0.35713822]
[1721525022235,0.59592085,3523.8,3523.5,0.35713822]
[1721525022447,1.39440959,3523.8,3523.5,0.35713822]
[1721525023338,0.79848874,3523.8,3523.5,0.35713822]
[1721525024240,0.59592085,3523.9,3523.5,0.35713822]
[1721525024561,0.59592085,3523.9,3523.6,3.1549678]
[1721525024837,0.59592085,3523.9,3523.7,0.04015485]
[1721525025054,0.59592085,3524.0,3523.7,0.04015485]
[1721525025250,1.59509159,3524.0,3523.7,0.04015485]
[1721525027475,0.99917074,3524.0,3523.7,0.04015485]
[1721525028388,2.83744,3524.3,3523.9,2.83775]
[1721525028389,0.59592085,3524.3,3523.9,2.83775]
[1721525028697,2.84862085,3524.6,3524.0,0.58880831]
[1721525028984,0.59592085,3524.8,3524.2,2.83745]
[1721525029278,5.68550085,3525.0,3524.3,2.83742]
[1721525029450,0.567361,3524.9,3524.3,2.83742]
[1721525029657,0.567361,3524.9,3524.4,2.87594217]
[1721525030266,2.2527,3525.0,3524.4,2.87594217]
[1721525031554,2.2527,3525.0,3524.5,2.83727]
[1721525031759,0.59592085,3525.2,3524.5,2.83727]
[1721525031964,0.59592085,3525.2,3524.6,0.03848255]
[1721525032264,5.68528085,3525.3,3524.6,2.87568255]
[1721525032452,0.87409039,3525.2,3524.6,2.87568255]
[1721525032887,2.1614317,3525.4,3524.8,2.83701]
[1721525033090,2.1114317,3525.4,3524.8,2.83701]
[1721525033291,2.1114317,3525.4,3524.9,0.03846901]
[1721525033669,4.9480017,3525.4,3524.9,0.03846901]
[1721525033865,4.9480017,3525.4,3524.6,2.83716]
[1721525034057,3.61508017,3525.3,3525.0,0.03844842]
[1721525034398,3.61508017,3525.3,3524.5,2.83727]
[1721525034560,3.61508017,3525.3,3525.1,0.03844592]
[1721525034762,3.61508017,3525.3,3524.6,3.38717]
[1721525034967,3.61508017,3525.3,3525.2,0.03844342]
[1721525035166,3.61508017,3525.3,3524.6,3.38717]
[1721525035701,3.61508017,3525.3,3524.7,0.03845592]
[1721525036201,0.57265119,3525.2,3524.7,0.03845592]
[1721525036770,0.57265119,3525.2,3524.5,3.38726]
[1721525037275,0.57265119,3525.2,3524.6,0.03718003]
[1721525037475,0.57265119,3525.2,3525.1,0.3169678]
[1721525037905,0.57265119,3525.2,3525.1,0.35413533]
[1721525038309,5.66206119,3525.2,3525.1,0.35413533]
[1721525038516,11.33548119,3525.2,3525.1,0.3169678]
[1721525039168,2.83756,3524.2,3523.5,2.2724]
[1721525039398,2.2527,3524.4,3523.5,5.11046]
[1721525039399,0.509026,3524.1,3523.5,5.11046]
[1721525039594,0.509026,3524.1,3523.6,0.03332348]
[1721525039911,4.84447,3524.3,3523.5,5.11046]
[1721525040093,2.83755,3524.2,3523.7,0.03332098]
[1721525040297,4.84444,3524.3,3523.3,2.83822]
[1721525040611,4.84444,3524.3,3523.8,0.03331847]
[1721525040907,4.84444,3524.3,3523.2,2.83831]
[1721525040908,2.83774,3524.0,3523.2,2.83831]
[1721525041100,2.83774,3524.0,3523.9,0.03331597]
[1721525041271,2.83776,3523.9,3523.1,2.2724]
[1721525041507,2.83784,3523.8,3523.1,2.2724]
[1721525043239,2.007,3523.5,3522.6,2.2724]
[1721525043800,2.007,3523.5,3522.4,2.83897]
[1721525044320,2.83833,3523.2,3522.4,2.83897]
[1721525044528,2.007,3523.1,3522.2,2.2724]
[1721525044675,2.83867,3522.8,3522.2,2.2724]
[1721525044878,2.83867,3522.8,3522.0,2.83929]
[1721525045123,2.007,3523.1,3521.9,2.83934]
[1721525045124,4.4995,3523.1,3521.9,2.83934]
[1721525045328,2.83873,3522.7,3522.0,2.83928]
[1721525046220,2.8386,3522.9,3522.0,2.83928]
[1721525046387,2.83867,3522.8,3522.0,0.805983]
[1721525046725,2.83867,3522.8,3522.0,3.645253]
[1721525047076,2.83867,3522.8,3522.1,0.55]
[1721525048476,2.007,3522.7,3521.8,2.3811]
[1721525048682,0.2007,3522.6,3521.8,2.3811]
[1721525048908,4.84579,3522.7,3521.8,2.3811]
[1721525049421,2.83884,3522.6,3521.8,2.3811]
[1721525049574,2.007,3522.7,3521.9,2.83935]
[1721525050005,2.83882,3522.6,3521.8,2.3811]
[1721525050205,2.83882,3522.6,3521.9,0.55]
[1721525051150,2.83882,3522.6,3522.0,0.03336354]
[1721525051750,2.007,3522.7,3522.0,2.87263354]
[1721525052346,2.83868,3522.8,3522.0,2.87263354]
[1721525055962,2.83874,3522.7,3522.0,2.87263354]
[1721525057764,1.017667,3522.8,3522.1,2.83918]
[1721525057921,1.017667,3522.8,3522.1,2.8728563]
[1721525057922,3.856327,3522.8,3522.1,2.8728563]
[1721525058358,2.83849,3523.0,3522.1,0.0336763]
[1721525058569,2.007,3523.1,3522.4,2.83897]
[1721525058774,2.83849,3523.0,3522.0,5.22039]
[1721525059068,2.83849,3523.0,3522.5,0.03366628]
[1721525059222,0.484549,3522.9,3522.3,2.83903]
[1721525059431,2.83849,3523.0,3522.3,2.83903]
[1721525059965,2.83849,3523.0,3522.4,2.83896]
[1721525060296,2.83849,3523.0,3522.4,2.87262879]
[1721525062495,2.83849,3523.0,3522.4,0.03366879]
[1721525062695,2.83857,3522.9,3522.1,3.38921]
[1721525062860,2.83857,3522.9,3522.5,0.03366628]
[1721525063269,2.83857,3522.9,3522.1,3.38921]
[1721525063493,2.83857,3522.9,3522.2,0.03394531]
[1721525063855,2.83857,3522.9,3522.2,2.87305531]
[1721525064055,2.83857,3522.9,3522.3,3.38904]
[1721525064362,2.83857,3522.9,3522.4,0.0339403]
[1721525064567,3.6554219,3522.9,3522.4,0.0339403]
[1721525064766,3.6554219,3522.9,3522.2,3.38911]
[1721525064998,3.6554219,3522.9,3522.5,0.0339378]
[1721525065186,3.6554219,3522.9,3522.2,3.38911]
[1721525065187,2.83866,3522.8,3522.2,3.38911]
[1721525065399,0.8168519,3522.9,3522.6,0.03393529]
[1721525065593,0.8168519,3522.9,3522.3,2.83903]
[1721525065752,3.323079,3523.0,3522.7,0.03393279]
[1721525066164,3.323079,3523.0,3522.4,2.83896]
[1721525066455,2.83853,3523.0,3522.4,2.83896]
[1721525066654,2.83853,3523.0,3522.5,0.03394685]
[1721525066975,2.007,3523.1,3522.5,0.03394685]
[1721525068007,2.007,3523.5,3522.8,2.83862]
[1721525068169,6.39053549,3523.5,3522.8,2.83862]
[1721525068358,6.39053549,3523.5,3522.9,0.03393684]
[1721525068359,2.83817,3523.4,3522.9,0.03393684]
[1721525068692,3.55244549,3523.5,3522.8,2.83862]
[1721525068995,3.55244549,3523.5,3522.6,2.4914]
[1721525068996,2.83793,3523.7,3523.0,0.03393433]
[1721525069197,2.83793,3523.7,3522.9,2.87247684]
[1721525069361,2.83793,3523.7,3523.1,0.03393183]
[1721525069553,2.83793,3523.7,3522.9,2.83854]
[1721525069758,2.83793,3523.7,3523.2,0.03392933]
[1721525069959,2.83793,3523.7,3523.0,2.83846]
[1721525069960,3.66579309,3523.7,3523.0,2.83846]
[1721525070159,3.66579309,3523.7,3523.3,0.03392682]
[1721525070355,3.66579309,3523.7,3523.0,2.83846]
[1721525070659,3.66579309,3523.7,3523.4,0.03392432]
[1721525070660,2.83809,3523.5,3523.4,0.03392432]
[1721525070888,2.83809,3523.5,3522.8,2.83863]
[1721525071091,2.83818,3523.4,3522.6,5.3302]
[1721525071301,2.83825,3523.3,3522.7,0.55]
[1721525071609,2.83825,3523.3,3522.6,5.3302]
[1721525071996,2.83825,3523.3,3522.7,2.83873]
[1721525073613,4.84509,3523.5,3522.7,2.83873]
[1721525074406,2.83818,3523.4,3522.7,2.83873]
[1721525074726,2.2999,3523.4,3522.7,2.83873]
[1721525075290,2.83826,3523.3,3522.7,2.83873]
[1721525076011,2.83834,3523.2,3522.6,2.4914]
[1721525077321,2.83834,3523.2,3522.6,5.3302]
[1721525078513,2.83834,3523.2,3522.6,2.4914]
[1721525079337,2.83834,3523.2,3522.2,0.55]
[1721525079338,4.84548,3523.1,3522.2,0.55]
[1721525079803,2.83867,3522.8,3522.2,0.55]
[1721525083332,2.83867,3522.8,3522.3,0.03387942]
[1721525084402,0.59592085,3522.7,3522.3,0.03387942]
[1721525084887,3.43459085,3522.8,3522.3,0.03387942]
[1721525085530,0.59592085,3522.8,3522.3,0.03387942]
[1721525085731,0.59592085,3522.7,3522.3,0.03387942]
[1721525088242,0.59592085,3522.6,3522.3,0.03387942]
[1721525090140,3.43481085,3522.5,3522.3,0.03387942]
[1721525090348,0.89419138,3522.6,3522.1,2.4601]
[1721525090349,0.59592085,3522.4,3522.1,2.4601]
[1721525091341,0.59592085,3522.4,3521.9,2.83936]
[1721525091941,0.59592085,3522.3,3521.7,5.20159]
[1721525092240,0.837,3521.9,3521.8,0.55]
[1721525094246,0.59592085,3522.1,3521.8,0.55]
[1721525095009,0.59592085,3522.1,3521.8,3.38943]
[1721525095545,0.59592085,3522.1,3521.9,2.83937]
[1721525095752,0.59592085,3522.2,3521.9,2.83937]
[1721525097586,0.59592085,3522.3,3522.2,5.20123]
[1721525098059,0.59592085,3522.4,3522.2,5.75123]
[1721525098268,0.59592085,3522.4,3522.2,5.78524174]
[1721525098738,0.59592085,3522.3,3522.2,5.78524174]
[1721525099116,0.59592085,3522.4,3522.2,5.78524174]